[Event "Late-Titled-Tuesday-Blitz-May-07-2024"]
[Site "Chess.com"]
[Date "2024.05.07"]
[Round "8"]
[White "yaguigor"]
[Black "mbojan"]
[Result "0-1"]
[WhiteElo "2592"]
[BlackElo "2881"]
[TimeControl "180+1"]
[EndTime "15:27:13 PDT"]
[Termination "mbojan won on time"]

1. e4 {[%clk 0:02:56.5]} 1... a6 {[%clk 0:02:51.7]} 2. d4 {[%clk 0:02:52.3]}
2... e6 {[%clk 0:02:51.2]} 3. Nf3 {[%clk 0:02:51.6]} 3... d5 {[%clk 0:02:51.7]}
4. e5 {[%clk 0:02:50.9]} 4... c5 {[%clk 0:02:51.8]} 5. c3 {[%clk 0:02:47.5]}
5... Bd7 {[%clk 0:02:52.4]} 6. Be2 {[%clk 0:02:26.2]} 6... cxd4 {[%clk
0:02:51.3]} 7. Nxd4 {[%clk 0:02:24.7]} 7... Nc6 {[%clk 0:02:51.1]} 8. f4 {[%clk
0:02:21.4]} 8... Nxd4 {[%clk 0:02:47.9]} 9. cxd4 {[%clk 0:02:20.3]} 9... Qb6
{[%clk 0:02:45.5]} 10. Nc3 {[%clk 0:02:19.1]} 10... Nh6 {[%clk 0:02:45.3]} 11.
g4 {[%clk 0:02:09.8]} 11... f5 {[%clk 0:02:14.6]} 12. exf6 {[%clk 0:02:07.1]}
12... gxf6 {[%clk 0:02:14.8]} 13. O-O {[%clk 0:02:02.9]} 13... Rg8 {[%clk
0:02:14.9]} 14. g5 {[%clk 0:01:58.5]} 14... Nf5 {[%clk 0:02:14.1]} 15. Bh5+
{[%clk 0:01:56]} 15... Kd8 {[%clk 0:02:14.7]} 16. Ne2 {[%clk 0:01:49.1]} 16...
h6 {[%clk 0:02:02.1]} 17. Kh1 {[%clk 0:01:43.8]} 17... hxg5 {[%clk 0:02:01.7]}
18. fxg5 {[%clk 0:01:43.4]} 18... fxg5 {[%clk 0:02:02.6]} 19. Rg1 {[%clk
0:01:30.7]} 19... Be7 {[%clk 0:02:00.3]} 20. a3 {[%clk 0:00:26.9]} 20... Rc8
{[%clk 0:02:00.2]} 21. b4 {[%clk 0:00:25.5]} 21... Kc7 {[%clk 0:02:00.3]} 22.
Bd2 {[%clk 0:00:20]} 22... Kb8 {[%clk 0:02:00.3]} 23. Rc1 {[%clk 0:00:15.7]}
23... Rc4 {[%clk 0:01:59.1]} 24. Bf3 {[%clk 0:00:07.8]} 24... Nxd4 {[%clk
0:01:58.1]} 25. Be3 {[%clk 0:00:02.9]} 25... Rxc1 {[%clk 0:01:49.1]} 26. Nxc1
{[%clk 0:00:03.8]} 26... Bf6 {[%clk 0:01:49.5]} 27. Nb3 {[%clk 0:00:02.8]} 27...
e5 {[%clk 0:01:49.9]} 28. Bxd4 {[%clk 0:00:00.8]} 28... exd4 {[%clk 0:01:50.1]}
29. Nc5 {[%clk 0:00:01.7]} 29... Bc8 {[%clk 0:01:49.3]} 30. Bxd5 {[%clk
0:00:01.4]} 30... Re8 {[%clk 0:01:49.8]} 0-1

[Event "Late-Titled-Tuesday-Blitz-May-07-2024"]
[Site "Chess.com"]
[Date "2024.05.07"]
[Round "8"]
[White "schondeln"]
[Black "dennisodessa"]
[Result "1/2-1/2"]
[WhiteElo "2357"]
[BlackElo "2538"]
[TimeControl "180+1"]
[EndTime "15:27:13 PDT"]
[Termination "Game drawn by stalemate"]

1. e4 {[%clk 0:03:00.9]} 1... e6 {[%clk 0:03:00.2]} 2. d4 {[%clk 0:02:59.9]}
2... d5 {[%clk 0:03:00.8]} 3. exd5 {[%clk 0:03:00.7]} 3... exd5 {[%clk
0:03:01.4]} 4. Nf3 {[%clk 0:03:01]} 4... Nf6 {[%clk 0:03:01.3]} 5. Bd3 {[%clk
0:03:00.9]} 5... Bd6 {[%clk 0:03:01.9]} 6. Qe2+ {[%clk 0:03:01]} 6... Be6 {[%clk
0:02:59]} 7. Ng5 {[%clk 0:02:57.6]} 7... Qe7 {[%clk 0:02:57.8]} 8. Nxe6 {[%clk
0:02:54]} 8... Qxe6 {[%clk 0:02:58.7]} 9. Qxe6+ {[%clk 0:02:53.3]} 9... fxe6
{[%clk 0:02:59.1]} 10. O-O {[%clk 0:02:53.2]} 10... O-O {[%clk 0:02:59.7]} 11.
Re1 {[%clk 0:02:52.9]} 11... Re8 {[%clk 0:03:00.3]} 12. Nd2 {[%clk 0:02:49.4]}
12... Nbd7 {[%clk 0:02:56.1]} 13. Nf3 {[%clk 0:02:49.1]} 13... e5 {[%clk
0:02:56.3]} 14. dxe5 {[%clk 0:02:48.6]} 14... Nxe5 {[%clk 0:02:57.2]} 15. Nxe5
{[%clk 0:02:43.9]} 15... Bxe5 {[%clk 0:02:57.9]} 16. Re2 {[%clk 0:02:39.2]}
16... Re7 {[%clk 0:02:50]} 17. Bf4 {[%clk 0:02:27.3]} 17... Rae8 {[%clk
0:02:49.2]} 18. Bxe5 {[%clk 0:02:20.6]} 18... Rxe5 {[%clk 0:02:50.1]} 19. Rxe5
{[%clk 0:02:20.9]} 19... Rxe5 {[%clk 0:02:49.6]} 20. Kf1 {[%clk 0:02:18]} 20...
Kf7 {[%clk 0:02:47.8]} 21. c3 {[%clk 0:02:13.6]} 21... c5 {[%clk 0:02:45.2]} 22.
Rd1 {[%clk 0:02:13.2]} 22... h6 {[%clk 0:02:42.4]} 23. Be2 {[%clk 0:02:13.1]}
23... b6 {[%clk 0:02:39.6]} 24. Bf3 {[%clk 0:02:13.1]} 24... Ke7 {[%clk
0:02:39.9]} 25. g3 {[%clk 0:02:10.4]} 25... Kd6 {[%clk 0:02:39.4]} 26. h4 {[%clk
0:02:10.5]} 26... b5 {[%clk 0:02:36.6]} 27. Re1 {[%clk 0:02:10.1]} 27... a5
{[%clk 0:02:36.2]} 28. Rxe5 {[%clk 0:02:09.2]} 28... Kxe5 {[%clk 0:02:37.1]} 29.
Ke2 {[%clk 0:02:09.7]} 29... b4 {[%clk 0:02:34.7]} 30. Bg2 {[%clk 0:02:04.8]}
30... Ne4 {[%clk 0:02:30.5]} 31. Bxe4 {[%clk 0:01:58.6]} 31... Kxe4 {[%clk
0:02:28]} 32. f3+ {[%clk 0:01:58.7]} 32... Ke5 {[%clk 0:02:25.9]} 33. Ke3 {[%clk
0:01:56.5]} 33... h5 {[%clk 0:01:42]} 34. a3 {[%clk 0:01:54.8]} 34... d4+ {[%clk
0:01:29.8]} 35. cxd4+ {[%clk 0:01:53.4]} 35... cxd4+ {[%clk 0:01:30.5]} 36. Kd3
{[%clk 0:01:53.7]} 36... bxa3 {[%clk 0:01:29.7]} 37. bxa3 {[%clk 0:01:53.4]}
37... Kd5 {[%clk 0:01:30]} 38. a4 {[%clk 0:01:50.4]} 38... Kc5 {[%clk
0:01:27.7]} 39. g4 {[%clk 0:01:50.3]} 39... Kb4 {[%clk 0:01:20.2]} 40. gxh5
{[%clk 0:01:47.1]} 40... Kxa4 {[%clk 0:01:20.4]} 41. f4 {[%clk 0:01:39.9]} 41...
Kb3 {[%clk 0:01:20.1]} 42. f5 {[%clk 0:01:40.3]} 42... a4 {[%clk 0:01:20.4]} 43.
h6 {[%clk 0:01:39.2]} 43... gxh6 {[%clk 0:01:17.8]} 44. f6 {[%clk 0:01:39.4]}
44... a3 {[%clk 0:01:18.5]} 45. f7 {[%clk 0:01:39.6]} 45... a2 {[%clk
0:01:19.2]} 46. f8=Q {[%clk 0:01:39.8]} 46... a1=Q {[%clk 0:01:19.8]} 47. Qb8+
{[%clk 0:01:39.7]} 47... Ka2 {[%clk 0:01:19.6]} 48. Qa7+ {[%clk 0:01:32.9]}
48... Kb1 {[%clk 0:01:20.5]} 49. Qxa1+ {[%clk 0:01:21.7]} 49... Kxa1 {[%clk
0:01:21.4]} 50. Kxd4 {[%clk 0:01:22.1]} 50... Kb2 {[%clk 0:01:21]} 51. h5 {[%clk
0:01:22.5]} 51... Kb3 {[%clk 0:01:20.9]} 52. Ke5 {[%clk 0:01:22.9]} 52... Kc4
{[%clk 0:01:21.8]} 53. Kf6 {[%clk 0:01:23.4]} 53... Kd5 {[%clk 0:01:22.7]} 54.
Kg6 {[%clk 0:01:23.8]} 54... Ke6 {[%clk 0:01:23.6]} 55. Kxh6 {[%clk 0:01:24.2]}
55... Kf7 {[%clk 0:01:24.5]} 56. Kh7 {[%clk 0:01:24.8]} 56... Kf8 {[%clk
0:01:24.9]} 57. h6 {[%clk 0:01:25.3]} 57... Kf7 {[%clk 0:01:25.1]} 58. Kh8
{[%clk 0:01:25.5]} 58... Kf8 {[%clk 0:01:25.3]} 59. Kh7 {[%clk 0:01:25.6]} 59...
Kf7 {[%clk 0:01:25.9]} 60. Kh8 {[%clk 0:01:26.1]} 60... Kf8 {[%clk 0:01:26.5]}
61. h7 {[%clk 0:01:27]} 61... Kf7 {[%clk 0:01:26.7]} 1/2-1/2

[Event "Late-Titled-Tuesday-Blitz-May-07-2024"]
[Site "Chess.com"]
[Date "2024.05.07"]
[Round "8"]
[White "Noki102"]
[Black "MyDream003"]
[Result "0-1"]
[WhiteElo "2572"]
[BlackElo "2824"]
[TimeControl "180+1"]
[EndTime "15:27:15 PDT"]
[Termination "MyDream003 won by checkmate"]

1. d4 {[%clk 0:03:00.9]} 1... Nf6 {[%clk 0:02:58.8]} 2. Nc3 {[%clk 0:03:01.1]}
2... d5 {[%clk 0:02:58.6]} 3. Bf4 {[%clk 0:03:00.4]} 3... c6 {[%clk 0:02:58.4]}
4. e3 {[%clk 0:03:00.5]} 4... Bf5 {[%clk 0:02:58.7]} 5. Nf3 {[%clk 0:02:59]}
5... h6 {[%clk 0:02:58.9]} 6. Ne5 {[%clk 0:02:59]} 6... Nbd7 {[%clk 0:02:57.5]}
7. g4 {[%clk 0:02:54.2]} 7... Bh7 {[%clk 0:02:55.4]} 8. h4 {[%clk 0:02:52.2]}
8... e6 {[%clk 0:02:52.7]} 9. g5 {[%clk 0:02:49.5]} 9... Ne4 {[%clk 0:02:50.8]}
10. g6 {[%clk 0:02:30.4]} 10... fxg6 {[%clk 0:02:41.8]} 11. Nxe4 {[%clk
0:02:29]} 11... dxe4 {[%clk 0:02:42.7]} 12. Qg4 {[%clk 0:02:11.6]} 12... Qf6
{[%clk 0:02:40.5]} 13. Bh3 {[%clk 0:01:57]} 13... Bd6 {[%clk 0:02:36]} 14. Nxg6
{[%clk 0:01:27.3]} 14... Bxg6 {[%clk 0:02:36.9]} 15. Bxd6 {[%clk 0:01:25.4]}
15... Bf5 {[%clk 0:02:37.3]} 16. Qg3 {[%clk 0:01:14.8]} 16... O-O-O {[%clk
0:02:32.7]} 17. O-O-O {[%clk 0:01:12]} 17... g6 {[%clk 0:02:29.5]} 18. Bf1
{[%clk 0:01:03.8]} 18... Qf7 {[%clk 0:02:25.2]} 19. Bc4 {[%clk 0:00:56.6]} 19...
Nb6 {[%clk 0:02:24.1]} 20. Bb3 {[%clk 0:00:49.3]} 20... Rhg8 {[%clk 0:02:24.5]}
21. Qe5 {[%clk 0:00:41.4]} 21... Rge8 {[%clk 0:02:07.6]} 22. Bb8 {[%clk
0:00:36.2]} 22... a6 {[%clk 0:02:03.2]} 23. Ba7 {[%clk 0:00:29.7]} 23... Nd7
{[%clk 0:02:00.4]} 24. Qf4 {[%clk 0:00:27.8]} 24... Qf8 {[%clk 0:01:55.7]} 25.
a4 {[%clk 0:00:16]} 25... h5 {[%clk 0:01:51.4]} 26. a5 {[%clk 0:00:15.5]} 26...
Bg4 {[%clk 0:01:50.6]} 27. Qg3 {[%clk 0:00:13.8]} 27... Qf5 {[%clk 0:01:40.8]}
28. Rd2 {[%clk 0:00:13.1]} 28... Qxa5 {[%clk 0:01:40.5]} 29. Qd6 {[%clk
0:00:10.5]} 29... Qa1# {[%clk 0:01:39.3]} 0-1

[Event "Late-Titled-Tuesday-Blitz-May-07-2024"]
[Site "Chess.com"]
[Date "2024.05.07"]
[Round "8"]
[White "ExchangeAB"]
[Black "miraitrunks"]
[Result "1-0"]
[WhiteElo "2416"]
[BlackElo "2249"]
[TimeControl "180+1"]
[EndTime "15:27:18 PDT"]
[Termination "ExchangeAB won by resignation"]

1. d4 {[%clk 0:03:00.9]} 1... d5 {[%clk 0:02:59.6]} 2. Bf4 {[%clk 0:03:00.5]}
2... Bf5 {[%clk 0:02:59.6]} 3. e3 {[%clk 0:03:00.5]} 3... e6 {[%clk 0:02:59.9]}
4. c4 {[%clk 0:03:00.1]} 4... c6 {[%clk 0:02:59.9]} 5. Nc3 {[%clk 0:02:59.4]}
5... Nf6 {[%clk 0:02:59.8]} 6. cxd5 {[%clk 0:02:59.5]} 6... exd5 {[%clk
0:02:59.9]} 7. Bd3 {[%clk 0:02:59.3]} 7... Bxd3 {[%clk 0:02:59.9]} 8. Qxd3
{[%clk 0:03:00.2]} 8... Bd6 {[%clk 0:03:00.4]} 9. Bxd6 {[%clk 0:02:59.8]} 9...
Qxd6 {[%clk 0:03:01.3]} 10. Nf3 {[%clk 0:03:00.1]} 10... O-O {[%clk 0:03:01.3]}
11. O-O {[%clk 0:02:58.1]} 11... Re8 {[%clk 0:03:01.3]} 12. Rab1 {[%clk
0:02:55.9]} 12... a5 {[%clk 0:03:00.3]} 13. a3 {[%clk 0:02:54.6]} 13... Nbd7
{[%clk 0:02:59.9]} 14. b4 {[%clk 0:02:52.4]} 14... axb4 {[%clk 0:03:00.4]} 15.
axb4 {[%clk 0:02:53.3]} 15... Ra3 {[%clk 0:02:59.5]} 16. Qc2 {[%clk 0:02:50.4]}
16... Nb6 {[%clk 0:02:52.9]} 17. Ne5 {[%clk 0:02:48.1]} 17... Nfd7 {[%clk
0:02:33.1]} 18. Nxd7 {[%clk 0:02:45.6]} 18... Qxd7 {[%clk 0:02:34]} 19. b5
{[%clk 0:02:44.5]} 19... Nc4 {[%clk 0:02:33.2]} 20. bxc6 {[%clk 0:02:39.4]}
20... bxc6 {[%clk 0:02:34.1]} 21. Na4 {[%clk 0:02:27.8]} 21... Qg4 {[%clk
0:02:30.5]} 22. Nc5 {[%clk 0:02:19.7]} 22... g6 {[%clk 0:02:17.7]} 23. h3 {[%clk
0:02:19.5]} 23... Qg5 {[%clk 0:02:13.9]} 24. Ra1 {[%clk 0:02:16.5]} 24... Nxe3
{[%clk 0:01:59.1]} 25. fxe3 {[%clk 0:02:11.1]} 25... Qxe3+ {[%clk 0:01:58.5]}
26. Kh1 {[%clk 0:02:08.8]} 26... Rxa1 {[%clk 0:01:55.3]} 27. Rxa1 {[%clk
0:02:07.9]} 27... Qxd4 {[%clk 0:01:55.8]} 28. Rd1 {[%clk 0:02:04.6]} 28... Qf4
{[%clk 0:01:51.3]} 29. Qd2 {[%clk 0:01:56.4]} 29... Qg3 {[%clk 0:01:48.1]} 30.
Nd7 {[%clk 0:01:45.5]} 30... Re6 {[%clk 0:01:40.7]} 31. Rf1 {[%clk 0:01:33.5]}
31... Kg7 {[%clk 0:01:34.8]} 32. Qd4+ {[%clk 0:01:28.7]} 32... Kh6 {[%clk
0:01:32.2]} 33. Nf6 {[%clk 0:01:15.2]} 33... Re1 {[%clk 0:01:07.2]} 34. Qd2+
{[%clk 0:01:02]} 34... Qe3 {[%clk 0:01:02.4]} 35. Qxe3+ {[%clk 0:01:00.6]} 35...
Rxe3 {[%clk 0:01:01.4]} 36. Ng4+ {[%clk 0:01:01.2]} 1-0

[Event "Late-Titled-Tuesday-Blitz-May-07-2024"]
[Site "Chess.com"]
[Date "2024.05.07"]
[Round "8"]
[White "JaackCamel"]
[Black "Andrii_Prydun"]
[Result "0-1"]
[WhiteElo "2212"]
[BlackElo "2412"]
[TimeControl "180+1"]
[EndTime "15:27:26 PDT"]
[Termination "Andrii_Prydun won by checkmate"]

1. d4 {[%clk 0:03:00.9]} 1... Nf6 {[%clk 0:02:59.3]} 2. c4 {[%clk 0:03:00.4]}
2... c5 {[%clk 0:02:59.3]} 3. d5 {[%clk 0:03:00]} 3... e5 {[%clk 0:02:59.8]} 4.
Nc3 {[%clk 0:02:57]} 4... d6 {[%clk 0:03:00.3]} 5. e4 {[%clk 0:02:56.8]} 5...
Nbd7 {[%clk 0:03:00.5]} 6. Be2 {[%clk 0:02:55.3]} 6... Be7 {[%clk 0:03:00.4]} 7.
g4 {[%clk 0:02:54.2]} 7... b5 {[%clk 0:02:51.4]} 8. cxb5 {[%clk 0:02:36.4]} 8...
a6 {[%clk 0:02:50.2]} 9. bxa6 {[%clk 0:02:27.7]} 9... Bxa6 {[%clk 0:02:49.9]}
10. h3 {[%clk 0:02:20.5]} 10... c4 {[%clk 0:02:35.7]} 11. Nf3 {[%clk 0:02:14.4]}
11... Nc5 {[%clk 0:02:35.1]} 12. Qc2 {[%clk 0:02:09.5]} 12... O-O {[%clk
0:02:26.9]} 13. O-O {[%clk 0:02:08.9]} 13... Rb8 {[%clk 0:02:01.1]} 14. Be3
{[%clk 0:02:07.4]} 14... Nd3 {[%clk 0:01:59.9]} 15. Bxd3 {[%clk 0:01:55.2]}
15... cxd3 {[%clk 0:02:00]} 16. Qd2 {[%clk 0:01:53.8]} 16... Qc8 {[%clk
0:01:53.9]} 17. Rfb1 {[%clk 0:01:50.6]} 17... Nxg4 {[%clk 0:01:49.1]} 18. Ne1
{[%clk 0:01:46.2]} 18... Nf6 {[%clk 0:01:32.5]} 19. Kg2 {[%clk 0:01:35.8]} 19...
Nh5 {[%clk 0:01:32.1]} 20. Nxd3 {[%clk 0:01:33.5]} 20... f5 {[%clk 0:01:31.3]}
21. Ne1 {[%clk 0:00:39.5]} 21... f4 {[%clk 0:01:26.2]} 22. Qd1 {[%clk
0:00:33.6]} 22... fxe3 {[%clk 0:01:25.5]} 23. Qxh5 {[%clk 0:00:33.1]} 23...
Rxf2+ {[%clk 0:01:20.6]} 24. Kg3 {[%clk 0:00:25.1]} 24... Rbxb2 {[%clk
0:01:16.4]} 25. Rxb2 {[%clk 0:00:22]} 25... Rxb2 {[%clk 0:01:17.3]} 26. Rc1
{[%clk 0:00:19.3]} 26... Qf8 {[%clk 0:01:15.7]} 27. Qg4 {[%clk 0:00:13.3]} 27...
Qf2# {[%clk 0:01:14.3]} 0-1

[Event "Late-Titled-Tuesday-Blitz-May-07-2024"]
[Site "Chess.com"]
[Date "2024.05.07"]
[Round "8"]
[White "GWR2024"]
[Black "Der_Balak_3Halak"]
[Result "0-1"]
[WhiteElo "2173"]
[BlackElo "2400"]
[TimeControl "180+1"]
[EndTime "15:27:28 PDT"]
[Termination "Der_Balak_3Halak won by resignation"]

1. e4 {[%clk 0:02:56]} 1... d5 {[%clk 0:03:00.9]} 2. exd5 {[%clk 0:02:54.9]}
2... Nf6 {[%clk 0:03:01.6]} 3. d4 {[%clk 0:02:53]} 3... Nxd5 {[%clk 0:03:00.6]}
4. c4 {[%clk 0:02:51.6]} 4... Nf6 {[%clk 0:02:59.8]} 5. Nc3 {[%clk 0:02:51.7]}
5... Bg4 {[%clk 0:02:59.5]} 6. Be2 {[%clk 0:02:50.1]} 6... Bxe2 {[%clk 0:02:59]}
7. Ngxe2 {[%clk 0:02:51]} 7... e6 {[%clk 0:02:58.6]} 8. O-O {[%clk 0:02:50.1]}
8... Nbd7 {[%clk 0:02:56]} 9. d5 {[%clk 0:02:47.4]} 9... exd5 {[%clk 0:02:53.7]}
10. Nxd5 {[%clk 0:02:46.1]} 10... Nxd5 {[%clk 0:02:52.8]} 11. cxd5 {[%clk
0:02:47]} 11... Bd6 {[%clk 0:02:51.3]} 12. Bf4 {[%clk 0:02:37.1]} 12... Bxf4
{[%clk 0:02:49.3]} 13. Nxf4 {[%clk 0:02:38]} 13... O-O {[%clk 0:02:49.6]} 14.
Qg4 {[%clk 0:02:35.4]} 14... Nf6 {[%clk 0:02:48.3]} 15. Qg5 {[%clk 0:02:30.5]}
15... h6 {[%clk 0:02:46.5]} 16. Qf5 {[%clk 0:02:29.1]} 16... g6 {[%clk
0:02:40.6]} 17. Qd3 {[%clk 0:02:21.5]} 17... Qd6 {[%clk 0:02:29.2]} 18. g3
{[%clk 0:02:00.1]} 18... Rad8 {[%clk 0:02:26.7]} 19. Rad1 {[%clk 0:01:54.7]}
19... g5 {[%clk 0:02:26.6]} 20. Ng2 {[%clk 0:01:35.1]} 20... Nxd5 {[%clk
0:02:24.3]} 21. Qb3 {[%clk 0:01:29.7]} 21... Qc6 {[%clk 0:02:09.4]} 22. Rc1
{[%clk 0:01:26.5]} 22... Qb6 {[%clk 0:02:05.5]} 23. Qc2 {[%clk 0:01:13]} 23...
Qf6 {[%clk 0:01:56.1]} 24. Qb3 {[%clk 0:01:10.2]} 24... b6 {[%clk 0:01:50.8]}
25. Rc4 {[%clk 0:01:07.2]} 25... Rfe8 {[%clk 0:01:44.4]} 26. Rfc1 {[%clk
0:01:06.3]} 26... c5 {[%clk 0:01:44.5]} 27. a3 {[%clk 0:01:01.2]} 27... Re2
{[%clk 0:01:37.3]} 28. Rf1 {[%clk 0:00:59.4]} 28... Rde8 {[%clk 0:01:30.9]} 29.
h4 {[%clk 0:00:58.9]} 29... Qf5 {[%clk 0:01:19.8]} 30. hxg5 {[%clk 0:00:56]}
30... hxg5 {[%clk 0:01:20.7]} 31. Rcc1 {[%clk 0:00:49.9]} 31... Nf6 {[%clk
0:01:11.5]} 32. Ne3 {[%clk 0:00:49.2]} 32... R8xe3 {[%clk 0:01:10.8]} 33. fxe3
{[%clk 0:00:48.6]} 33... Qh3 {[%clk 0:01:10.5]} 34. Rf2 {[%clk 0:00:47.3]} 34...
Qxg3+ {[%clk 0:01:10.6]} 0-1

[Event "Late-Titled-Tuesday-Blitz-May-07-2024"]
[Site "Chess.com"]
[Date "2024.05.07"]
[Round "8"]
[White "LUISMIGUELOV"]
[Black "Fore_Man"]
[Result "1-0"]
[WhiteElo "2216"]
[BlackElo "2266"]
[TimeControl "180+1"]
[EndTime "15:27:35 PDT"]
[Termination "LUISMIGUELOV won on time"]

1. e4 {[%clk 0:02:54.9]} 1... e6 {[%clk 0:03:00.1]} 2. b3 {[%clk 0:02:53.6]}
2... d5 {[%clk 0:02:59.8]} 3. Bb2 {[%clk 0:02:54.1]} 3... dxe4 {[%clk
0:02:53.5]} 4. Nc3 {[%clk 0:02:53.7]} 4... Nf6 {[%clk 0:02:50]} 5. g4 {[%clk
0:02:53.3]} 5... b6 {[%clk 0:02:37.1]} 6. Bg2 {[%clk 0:02:51.9]} 6... Bb7 {[%clk
0:02:35.3]} 7. Qe2 {[%clk 0:02:45.7]} 7... Nbd7 {[%clk 0:02:31.3]} 8. g5 {[%clk
0:02:38]} 8... Nd5 {[%clk 0:02:30.5]} 9. Nxe4 {[%clk 0:02:34.4]} 9... Nf4 {[%clk
0:02:26.3]} 10. Qf3 {[%clk 0:02:20.4]} 10... Nxg2+ {[%clk 0:02:20.5]} 11. Qxg2
{[%clk 0:02:19.5]} 11... Rb8 {[%clk 0:02:20.4]} 12. O-O-O {[%clk 0:02:15.4]}
12... Nc5 {[%clk 0:02:14.1]} 13. f3 {[%clk 0:02:13.6]} 13... Qd5 {[%clk
0:01:45.1]} 14. d3 {[%clk 0:02:07.8]} 14... a5 {[%clk 0:01:39]} 15. Ne2 {[%clk
0:02:06.3]} 15... Qf5 {[%clk 0:00:33.6]} 16. h4 {[%clk 0:02:03.2]} 16... a4
{[%clk 0:00:30.4]} 17. Nxc5 {[%clk 0:01:56.2]} 17... Bxc5 {[%clk 0:00:22.7]} 18.
Bxg7 {[%clk 0:01:45.6]} 18... Bxf3 {[%clk 0:00:17]} 19. Qf1 {[%clk 0:01:35.1]}
19... Rg8 {[%clk 0:00:08.5]} 20. Bf6 {[%clk 0:01:33.6]} 20... axb3 {[%clk
0:00:06]} 21. axb3 {[%clk 0:01:30.6]} 21... Ra8 {[%clk 0:00:05.9]} 22. Kb2
{[%clk 0:01:26]} 22... Bxh1 {[%clk 0:00:03.2]} 23. Qxf5 {[%clk 0:01:19.7]} 23...
exf5 {[%clk 0:00:04.1]} 24. Rxh1 {[%clk 0:01:19.4]} 24... Be7 {[%clk 0:00:04.5]}
25. Bc3 {[%clk 0:01:17.4]} 25... Kd7 {[%clk 0:00:01.3]} 26. Rf1 {[%clk
0:01:17.1]} 1-0

[Event "Late-Titled-Tuesday-Blitz-May-07-2024"]
[Site "Chess.com"]
[Date "2024.05.07"]
[Round "8"]
[White "VictorFcQNK"]
[Black "Mariia89"]
[Result "0-1"]
[WhiteElo "2090"]
[BlackElo "2222"]
[TimeControl "180+1"]
[EndTime "15:27:36 PDT"]
[Termination "Mariia89 won by checkmate"]

1. d4 {[%clk 0:03:00.9]} 1... Nf6 {[%clk 0:02:58.7]} 2. Nf3 {[%clk 0:02:59.3]}
2... c5 {[%clk 0:02:58.5]} 3. e3 {[%clk 0:02:57.7]} 3... cxd4 {[%clk 0:02:58.6]}
4. exd4 {[%clk 0:02:57.6]} 4... d5 {[%clk 0:02:59.5]} 5. Bd3 {[%clk 0:02:54.7]}
5... Bg4 {[%clk 0:02:59]} 6. h3 {[%clk 0:02:53.4]} 6... Bh5 {[%clk 0:02:58.8]}
7. c3 {[%clk 0:02:49.3]} 7... Nc6 {[%clk 0:02:57.9]} 8. Bf4 {[%clk 0:02:48.1]}
8... e6 {[%clk 0:02:57.7]} 9. Nbd2 {[%clk 0:02:42]} 9... Bd6 {[%clk 0:02:57.5]}
10. Bxd6 {[%clk 0:02:35.8]} 10... Qxd6 {[%clk 0:02:58.4]} 11. Qb3 {[%clk
0:02:35.7]} 11... O-O {[%clk 0:02:55.1]} 12. Qxb7 {[%clk 0:02:08.4]} 12... Rab8
{[%clk 0:02:52.2]} 13. Qa6 {[%clk 0:02:07]} 13... Rxb2 {[%clk 0:02:45.5]} 14.
Bb5 {[%clk 0:01:57.1]} 14... Bxf3 {[%clk 0:02:24]} 15. Nxf3 {[%clk 0:01:44.8]}
15... Qf4 {[%clk 0:02:20.5]} 16. Qxc6 {[%clk 0:01:29.2]} 16... Qe4+ {[%clk
0:02:17.5]} 17. Kf1 {[%clk 0:01:28.1]} 17... Qc2 {[%clk 0:02:13.2]} 18. Ke1
{[%clk 0:00:53.6]} 18... Qxf2+ {[%clk 0:02:06.7]} 19. Kd1 {[%clk 0:00:53.8]}
19... Qc2+ {[%clk 0:01:55.8]} 20. Ke1 {[%clk 0:00:51]} 20... Qf2+ {[%clk
0:01:37.9]} 21. Kd1 {[%clk 0:00:49.3]} 21... Qxg2 {[%clk 0:01:36.5]} 22. Rf1
{[%clk 0:00:47.9]} 22... Ne4 {[%clk 0:01:27.1]} 23. Bd3 {[%clk 0:00:44.2]} 23...
Nf2+ {[%clk 0:01:20.2]} 24. Rxf2 {[%clk 0:00:17.2]} 24... Qxf2 {[%clk
0:01:18.6]} 25. Kc1 {[%clk 0:00:16]} 25... Rfb8 {[%clk 0:01:10.3]} 26. Ng5
{[%clk 0:00:10.6]} 26... Qd2# {[%clk 0:01:06.6]} 0-1

[Event "Late-Titled-Tuesday-Blitz-May-07-2024"]
[Site "Chess.com"]
[Date "2024.05.07"]
[Round "8"]
[White "Magicmaster17"]
[Black "nabukatnezarr"]
[Result "1-0"]
[WhiteElo "2887"]
[BlackElo "2594"]
[TimeControl "180+1"]
[EndTime "15:27:41 PDT"]
[Termination "Magicmaster17 won by resignation"]

1. d4 {[%clk 0:03:00.9]} 1... Nf6 {[%clk 0:02:59.2]} 2. Nf3 {[%clk 0:03:01.8]}
2... e6 {[%clk 0:02:58.8]} 3. Bg5 {[%clk 0:03:00.8]} 3... Be7 {[%clk 0:02:55.9]}
4. Nbd2 {[%clk 0:02:59.9]} 4... h6 {[%clk 0:02:54.4]} 5. Bh4 {[%clk 0:02:59.2]}
5... d5 {[%clk 0:02:44.6]} 6. e3 {[%clk 0:02:59]} 6... b6 {[%clk 0:02:44.6]} 7.
c3 {[%clk 0:02:57.2]} 7... O-O {[%clk 0:02:43.1]} 8. Ne5 {[%clk 0:02:55.3]} 8...
Nfd7 {[%clk 0:02:41.4]} 9. Nxd7 {[%clk 0:02:44.5]} 9... Bxd7 {[%clk 0:02:20.9]}
10. Bg3 {[%clk 0:02:36.3]} 10... c5 {[%clk 0:02:16.2]} 11. Bd3 {[%clk
0:02:35.6]} 11... Nc6 {[%clk 0:02:14.4]} 12. O-O {[%clk 0:02:35.4]} 12... Bf6
{[%clk 0:02:03.3]} 13. Qe2 {[%clk 0:02:31]} 13... e5 {[%clk 0:01:55.9]} 14. dxc5
{[%clk 0:02:31]} 14... e4 {[%clk 0:01:39.5]} 15. Ba6 {[%clk 0:02:30.5]} 15...
bxc5 {[%clk 0:01:07.3]} 16. Bb7 {[%clk 0:02:29.2]} 16... Ne5 {[%clk 0:01:07.9]}
17. Bxa8 {[%clk 0:02:26.9]} 17... Qxa8 {[%clk 0:01:08.8]} 18. Bxe5 {[%clk
0:02:21.3]} 18... Bxe5 {[%clk 0:01:08.6]} 19. c4 {[%clk 0:02:22.1]} 19... Rb8
{[%clk 0:01:00.2]} 20. Rab1 {[%clk 0:02:03.4]} 20... d4 {[%clk 0:00:47.3]} 21.
exd4 {[%clk 0:02:02.7]} 21... Bxd4 {[%clk 0:00:48.2]} 22. Nxe4 {[%clk
0:01:59.4]} 22... Bf5 {[%clk 0:00:44.1]} 23. Rfe1 {[%clk 0:01:46.5]} 23... Rb6
{[%clk 0:00:33.2]} 24. Kh1 {[%clk 0:01:43.4]} 24... Rg6 {[%clk 0:00:25]} 25. f3
{[%clk 0:01:39.5]} 25... Kh7 {[%clk 0:00:25.3]} 26. Rbd1 {[%clk 0:01:38.3]}
26... Bd7 {[%clk 0:00:21]} 27. b4 {[%clk 0:01:35.9]} 27... Ba4 {[%clk
0:00:16.3]} 28. Rd2 {[%clk 0:01:34.7]} 28... Re6 {[%clk 0:00:12.8]} 29. Qf1
{[%clk 0:01:30.5]} 29... Bc6 {[%clk 0:00:07]} 30. Nxc5 {[%clk 0:01:29.1]} 30...
Rxe1 {[%clk 0:00:07.9]} 31. Qxe1 {[%clk 0:01:29.1]} 31... Bxc5 {[%clk
0:00:08.2]} 32. bxc5 {[%clk 0:01:28.9]} 32... g6 {[%clk 0:00:07.5]} 33. Qe7
{[%clk 0:01:24.3]} 1-0